bitfinex/quotes_SOLUSD_20240718
["timestamp","ask_amount","ask_price","bid_price","bid_amount"]
[1721343717452,15.0,160.03,160.0,21.8744]
[1721343717639,15.0,160.01,160.0,15.6245]
[1721343719957,15.0,160.01,160.0,21.8745]
[1721343720454,15.0,160.02,160.01,6.2496]
[1721343720633,16.6593,160.05,160.02,15.6222]
[1721343720835,6.101,160.08,160.02,1.24968837]
[1721343721043,15.0,160.05,160.04,21.8691]
[1721343723630,15.0,160.05,160.04,15.6207]
[1721343724453,15.0,160.05,160.04,21.8691]
[1721343725848,6.101,160.08,160.04,15.6207]
[1721343726045,15.0,160.07,160.06,6.2476]
[1721343726366,15.0,160.11,160.06,15.0]
[1721343726554,15.0,160.11,160.1,6.246]
[1721343726859,15.8658,160.13,160.1,15.6148]
[1721343727154,15.0,160.14,160.11,1.24900855]
[1721343727362,15.0,160.14,160.12,21.8581]
[1721343727663,15.0,160.14,160.12,15.6129]
[1721343727959,15.0,160.13,160.1,6.246]
[1721343728143,15.0,160.12,160.1,6.246]
[1721343728645,15.0,160.12,160.11,6.2457]
[1721343729956,21.4203,160.16,160.12,6.2452]
[1721343730161,15.0,160.13,160.12,6.2452]
[1721343730337,15.0,160.13,160.11,21.8592]
[1721343730540,15.0,160.14,160.13,6.2447]
[1721343730950,6.4203,160.16,160.12,6.2452]
[1721343731151,15.0,160.14,160.12,6.2452]
[1721343731771,15.0,160.13,160.11,21.8593]
[1721343731964,15.0,160.12,160.11,21.8593]
[1721343735067,15.0,160.13,160.12,6.2451]
[1721343735471,15.0,160.13,160.11,21.8593]
[1721343735651,15.0,160.12,160.11,21.8593]
[1721343737077,6.4203,160.16,160.13,6.2447]
[1721343737253,15.0,160.14,160.13,6.2447]
[1721343739165,15.0,160.15,160.14,6.2442]
[1721343739550,16.3918,160.18,160.15,6.2439]
[1721343739772,15.0,160.16,160.15,6.2439]
[1721343740071,15.0,160.17,160.15,6.2439]
[1721343741161,15.0,160.17,160.14,6.2444]
[1721343741354,15.0,160.16,160.14,6.2444]
[1721343741850,15.0,160.15,160.14,6.2444]
[1721343742359,15.0,160.16,160.14,6.2444]
[1721343742959,16.3918,160.18,160.14,6.2444]
[1721343743145,15.0,160.16,160.14,6.2444]
[1721343745456,15.0,160.15,160.14,6.2444]
[1721343745666,15.0,160.16,160.14,6.2444]
[1721343756797,15.0,160.16,160.15,6.2441]
[1721343757204,15.3591,160.22,160.15,1.24875745]
[1721343757492,15.3591,160.22,160.18,6.2427]
[1721343757493,15.0,160.2,160.18,6.2427]
[1721343757709,15.0,160.21,160.19,6.2425]
[1721343757871,15.0,160.21,160.18,1.24847707]
[1721343757872,7.1698836,160.25,160.22,6.2411]
[1721343758105,15.0,160.23,160.21,15.6039]
[1721343758277,7.1698836,160.25,160.21,15.6039]
[1721343758278,15.0,160.22,160.21,15.6039]
[1721343758599,15.0,160.22,160.19,6.2424]
[1721343758785,15.0,160.2,160.19,6.2424]
[1721343759805,15.0,160.21,160.2,6.2421]
[1721343760701,15.0,160.21,160.18,21.8498]
[1721343760902,15.0,160.21,160.15,15.61]
[1721343760903,15.0,160.19,160.15,15.61]
[1721343761107,15.6113,160.21,160.15,15.61]
[1721343761108,15.0,160.16,160.15,15.61]
[1721343761305,15.0,160.16,160.15,21.8541]
[1721343762391,15.0,160.16,160.15,15.61]
[1721343764002,15.0,160.16,160.15,21.8541]
[1721343768605,6.2426,160.19,160.15,21.8541]
[1721343768810,15.0,160.16,160.15,21.8541]
[1721343769684,15.0,160.16,160.15,15.61]
[1721343769998,15.0,160.16,160.14,6.2443]
[1721343770177,15.0,160.15,160.14,6.2443]
[1721343772104,15.0,160.18,160.17,6.2432]
[1721343772284,15.0,160.18,160.17,21.851]
[1721343773310,15.6113,160.21,160.18,6.2427]
[1721343773512,15.0,160.19,160.18,6.2427]
[1721343774903,15.0,160.19,160.17,21.851]
[1721343775093,15.0,160.18,160.17,21.851]
[1721343775604,15.0,160.18,160.14,15.6106]
[1721343775801,15.6113,160.21,160.14,15.6106]
[1721343775802,15.0,160.16,160.14,15.6106]
[1721343776303,15.0,160.16,160.15,6.244]
[1721343783711,15.6113,160.21,160.16,15.609]
[1721343783921,15.0,160.19,160.16,15.609]
[1721343784096,15.0,160.19,160.18,6.2425]
[1721343784505,15.0,160.19,160.17,6.2432]
[1721343784696,15.0,160.18,160.17,6.2432]
[1721343785410,15.0,160.18,160.16,21.8526]
[1721343785630,15.0,160.17,160.12,31.2247]
[1721343785832,15.0,160.13,160.09,31.2305]
[1721343785997,15.0,160.12,160.11,6.2455]
[1721343786199,16.1969,160.15,160.13,6.2448]
[1721343786724,16.1969,160.15,160.09,31.2305]
[1721343786725,16.1969,160.15,160.12,21.858]
[1721343786929,15.0,160.13,160.12,21.858]
[1721343787331,16.1969,160.15,160.13,6.2448]
[1721343787520,15.0,160.14,160.13,6.2448]
[1721343787827,16.1969,160.15,160.13,6.2448]
[1721343788009,15.0,160.14,160.12,21.8581]
[1721343788332,15.0,160.14,160.13,6.2449]
[1721343789331,15.0,160.14,160.12,21.8582]
[1721343789525,15.0,160.13,160.12,21.8582]
[1721343789906,16.1969,160.15,160.12,21.8582]
[1721343790126,16.1969,160.15,160.13,6.2448]
[1721343790328,16.1969,160.15,160.14,6.2445]
[1721343790510,21.9504,160.19,160.14,6.2445]
[1721343791014,28.1933,160.19,160.14,6.2445]
[1721343791634,21.9504,160.19,160.15,6.244]
[1721343791935,20.0,160.18,160.16,6.2437]
[1721343792513,21.9504,160.19,160.16,6.2437]
[1721343792711,15.4694,160.19,160.17,6.2432]
[1721343792920,15.0,160.18,160.17,6.2432]
[1721343793441,6.2415,160.22,160.17,6.2432]
[1721343793611,15.0,160.18,160.17,6.2432]
[1721343795836,15.0,160.18,160.16,21.8526]
[1721343796043,6.2425,160.2,160.16,15.609]
[1721343796916,21.5831,160.23,160.16,15.609]
[1721343797130,15.0,160.17,160.16,15.609]
[1721343797432,15.0,160.17,160.16,21.8527]
[1721343798018,15.0,160.17,160.16,15.609]
[1721343798441,15.0,160.17,160.16,21.8527]
[1721343798650,15.0,160.17,160.09,40.46289176]
[1721343798815,15.0,160.17,160.07,6.495]
[1721343798816,15.0,160.12,160.11,6.2457]
[1721343799234,35.0,160.16,160.13,6.2447]
[1721343799235,20.0,160.16,160.13,6.2447]
[1721343799514,20.0,160.17,160.15,6.244]
[1721343799940,15.0,160.16,160.15,6.244]
[1721343800126,35.0,160.16,160.14,21.8554]
[1721343800322,20.0,160.17,160.14,21.8554]
[1721343800323,15.0,160.15,160.14,21.8554]
[1721343800528,15.0,160.15,160.14,15.611]
[1721343800739,15.0,160.16,160.15,6.244]
[1721343800939,15.9505,160.18,160.16,6.2436]
[1721343801129,30.9505,160.18,160.16,6.2436]
[1721343801315,21.5702,160.21,160.17,6.2433]
[1721343801515,15.0,160.18,160.17,6.2433]
[1721343804429,15.0,160.18,160.16,21.8523]
[1721343805535,6.2422,160.2,160.16,15.6087]
[1721343805724,15.0,160.17,160.16,15.6087]
[1721343805924,15.0,160.17,160.16,21.8524]
[1721343811241,15.3283,160.21,160.2,6.2421]
[1721343811422,15.3283,160.21,160.18,15.6072]
[1721343811423,50.3283,160.21,160.19,6.2424]
[1721343811623,30.3283,160.21,160.19,6.2424]
[1721343812731,30.3283,160.21,160.18,21.85]
[1721343812929,15.0,160.19,160.18,21.85]
[1721343813324,15.3283,160.21,160.19,6.2425]
[1721343813560,15.0,160.2,160.19,6.2425]
[1721343814129,15.0,160.2,160.18,21.85]
[1721343814330,15.0,160.19,160.18,21.85]
[1721343816352,16.6948836,160.25,160.21,6.2416]
[1721343816558,15.0,160.23,160.22,21.8446]
[1721343816753,16.6948836,160.25,160.23,6.241]
[1721343816956,15.0,160.24,160.23,6.241]
[1721343817333,16.6948836,160.25,160.23,6.241]
[1721343817562,15.0,160.24,160.23,6.2408]
[1721343818069,15.0,160.24,160.22,21.8444]
[1721343818232,15.0,160.23,160.22,21.8444]
[1721343821038,0.8142836,160.25,160.22,21.8444]
[1721343821039,15.8142836,160.25,160.24,6.2406]
[1721343821461,0.8142836,160.25,160.24,6.2406]
[1721343821642,15.8142836,160.25,160.24,6.2406]
[1721343822260,15.8142836,160.25,160.23,6.2409]
[1721343822657,15.0,160.24,160.23,6.2409]
[1721343822843,15.0,160.24,160.22,15.6032]
[1721343822844,15.0,160.24,160.22,21.8444]
[1721343823044,15.0,160.23,160.22,15.6032]
[1721343823569,15.0,160.23,160.22,21.8446]
[1721343824856,15.0,160.24,160.23,6.241]
[1721343825452,0.8142836,160.25,160.24,6.2406]
[1721343831578,0.8142836,160.25,160.24,66.2406]
[1721343832362,0.8142836,160.25,160.24,67.48842131]
[1721343832542,0.8142836,160.25,160.24,66.2406]
[1721343833775,8.36e-05,160.25,160.24,107.39135752]
[1721343833981,8.36e-05,160.25,160.24,157.9786]
[1721343834347,8.36e-05,160.25,160.24,139.2086]
[1721343834549,8.36e-05,160.25,160.24,139.0386]
[1721343834847,8.36e-05,160.25,160.24,145.2926]
[1721343835047,8.36e-05,160.25,160.24,145.4626]
[1721343835473,8.36e-05,160.25,160.24,164.2326]
[1721343835778,8.36e-05,160.25,160.24,157.9786]
[1721343835953,8.36e-05,160.25,160.24,164.2326]
[1721343837061,47.341275,160.25,160.24,164.2326]
[1721343837379,20.682575,160.25,160.24,157.9786]
[1721343837676,20.682575,160.25,160.24,138.8686]
[1721343838047,20.682575,160.25,160.24,139.0386]
[1721343838247,19.024475,160.25,160.24,145.2926]
[1721343838473,15.708275,160.25,160.24,145.2926]
[1721343838873,15.708275,160.25,160.24,145.4626]
[1721343839371,15.708275,160.25,160.24,164.2326]
[1721343839978,63.619575,160.25,160.24,164.2326]
[1721343840365,63.619575,160.25,160.24,145.4626]
[1721343840689,63.619575,160.25,160.24,139.3296]
[1721343842883,63.619575,160.25,160.24,158.0996]
[1721343845490,16.2398,160.35,160.27,0.30553179]
[1721343845696,16.2398,160.35,160.33,15.0]
[1721343846772,16.2398,160.35,160.34,15.0]
[1721343847385,16.3117,160.39,160.34,15.0]
[1721343847675,16.3117,160.39,160.35,16.24711974]
[1721343847875,16.3117,160.39,160.35,15.0]
[1721343848491,16.3117,160.39,160.37,15.0]
[1721343848688,16.3117,160.39,160.38,4.6723657]
[1721343851112,31.3117,160.39,160.38,4.6723657]
[1721343851979,16.3117,160.39,160.38,4.6723657]
[1721343853403,31.3117,160.39,160.38,4.6723657]
[1721343854207,16.3117,160.39,160.38,4.6723657]
[1721343854590,31.3117,160.39,160.38,4.6723657]
[1721343857000,37.5465,160.39,160.38,4.6723657]
[1721343857206,31.3117,160.39,160.38,4.6723657]
[1721343860491,16.3117,160.39,160.38,4.6723657]
[1721343860710,31.3117,160.39,160.38,4.6723657]
[1721343863292,57.5465,160.39,160.38,4.6723657]
[1721343863910,51.3117,160.39,160.28,0.30553179]
[1721343864089,15.0,160.36,160.31,15.0]
[1721343864290,15.0,160.36,160.32,1.24723535]
[1721343864515,15.0,160.36,160.33,1.24723596]
[1721343865430,15.0,160.36,160.32,1.24723691]
[1721343865593,15.0,160.36,160.33,1.2472371]
[1721343866721,15.0,160.36,160.32,1.24723737]
[1721343866923,15.0,160.36,160.33,1.24723658]
[1721343867921,15.0,160.36,160.32,1.24723696]
[1721343869824,15.0,160.36,160.31,45.0]
[1721343873803,16.3117,160.39,160.32,1.24728595]
[1721343874003,16.3117,160.39,160.33,1.24723969]
[1721343874203,22.5465,160.39,160.33,1.24723969]
[1721343874629,22.5465,160.39,160.31,60.0]
[1721343874630,16.3117,160.39,160.31,60.0]
[1721343877232,16.3117,160.39,160.31,45.0]
[1721343877445,16.3117,160.39,160.31,60.0]
[1721343877611,16.3117,160.39,160.32,1.24716351]
[1721343877930,16.3117,160.39,160.31,60.0]
[1721343879333,22.5465,160.39,160.31,60.0]
[1721343881143,15.0,160.37,160.31,60.0]
[1721343883127,16.3117,160.39,160.32,1.24716222]
[1721343883742,16.3117,160.39,160.31,60.0]
[1721343883743,15.0,160.37,160.33,1.24716114]
[1721343884420,15.0,160.37,160.31,60.0]
[1721343885223,16.3117,160.39,160.32,15.0]
[1721343885542,15.0,160.37,160.33,45.0]
[1721343885725,15.0,160.37,160.31,60.0]
[1721343886314,15.0,160.36,160.31,60.0]
[1721343886844,15.0,160.35,160.31,45.0]
[1721343887609,15.0,160.34,160.31,45.0]
[1721343887823,15.0,160.34,160.3,45.0]
[1721343888837,15.0,160.33,160.28,24.21107518]
[1721343889040,15.0,160.32,160.29,45.0]
[1721343889228,6.4227,160.35,160.27,15.0]
[1721343889229,15.0,160.31,160.27,9.21107518]
[1721343889429,15.0,160.31,160.26,9.21107518]
[1721343889647,15.0,160.31,160.25,15.0]
[1721343889827,15.0,160.31,160.26,9.22407241]
[1721343890028,15.0,160.31,160.25,24.22407241]
[1721343890234,15.0,160.3,160.25,24.22407241]
[1721343890922,15.0,160.31,160.26,60.0]
[1721343891253,15.0,160.31,160.26,69.22407241]
[1721343891426,15.0,160.31,160.27,1.24761601]
[1721343891831,15.0,160.32,160.28,1.24761605]
[1721343892137,15.0,160.32,160.28,46.24761605]
[1721343893336,15.0,160.32,160.28,45.0]
[1721343893940,15.0,160.32,160.29,1.24754732]
[1721343895740,15.0,160.31,160.29,1.24754732]
[1721343896045,15.815,160.34,160.28,45.0]
[1721343896344,15.0,160.33,160.29,1.24746296]
[1721343896547,15.0,160.33,160.3,1.24746209]
[1721343897625,15.0,160.33,160.29,1.24745229]
[1721343897927,15.0,160.33,160.28,60.0]
[1721343898545,15.0,160.33,160.28,45.0]
[1721343899046,15.0,160.32,160.28,45.0]
[1721343900053,15.0,160.33,160.28,45.0]
[1721343901939,15.0,160.32,160.28,45.0]
[1721343902250,15.0,160.3,160.26,9.22565877]
[1721343902556,15.0,160.3,160.25,15.0]
[1721343902557,15.0,160.3,160.25,24.22565877]
[1721343902931,15.0,160.3,160.25,24.23126194]
[1721343904556,15.0,160.3,160.26,46.24769924]
[1721343904856,15.815,160.34,160.27,1.24769963]
[1721343905054,15.0,160.32,160.27,16.24769963]
[1721343905253,15.0,160.33,160.28,15.0]
[1721343905452,30.815,160.34,160.29,1.24756511]
[1721343905635,30.815,160.34,160.3,1.2475045]
[1721343906136,22.4338,160.39,160.3,16.2475045]
[1721343906348,15.0,160.36,160.31,15.0]
[1721343906528,15.0,160.36,160.32,1.2473261]
[1721343907538,15.0,160.36,160.3,15.0]
[1721343907539,15.0,160.36,160.31,1.24732563]
[1721343907934,15.0,160.35,160.31,1.24732563]
[1721343909135,15.0,160.35,160.3,15.0]
[1721343910739,15.0,160.35,160.31,1.24734308]
[1721343911258,15.0,160.35,160.3,15.0]
[1721343911554,15.0,160.33,160.28,15.0]
[1721343911861,15.0,160.33,160.29,45.0]
[1721343913757,15.0,160.33,160.27,24.24317365]
[1721343913955,15.0,160.33,160.28,45.0]
[1721343915473,15.0,160.32,160.28,45.0]
[1721343915645,15.0,160.3,160.26,9.24317365]
[1721343915851,15.0,160.3,160.27,1.24779375]
[1721343916447,15.0,160.31,160.27,1.24779375]
[1721343916759,15.0,160.32,160.27,15.0]
[1721343917262,15.0,160.31,160.26,15.0]
[1721343917459,15.0,160.31,160.27,45.0]
[1721343917657,15.0,160.31,160.26,15.0]
[1721343919553,15.0,160.31,160.25,15.0]
[1721343919750,15.0,160.31,160.26,45.0]
[1721343922368,22.1091,160.33,160.26,45.0]
[1721343922569,15.0,160.31,160.26,45.0]
[1721343923769,15.0,160.29,160.24,24.25158921]
[1721343923978,15.0,160.28,160.24,9.25158921]
[1721343924155,15.0,160.28,160.23,15.0]
[1721343924342,15.0,160.28,160.22,9.25158921]
[1721343924343,6.238,160.31,160.22,24.25158921]
[1721343924547,15.0,160.26,160.22,9.25158921]
[1721343924775,15.0,160.23,160.2,9.25158921]
[1721343924993,15.0,160.23,160.19,9.25158921]
[1721343925273,6.3773,160.27,160.19,9.25158921]
[1721343925274,15.0,160.22,160.19,1.24832599]
[1721343925476,15.0,160.23,160.19,1.24832599]
[1721343928271,15.0,160.22,160.17,15.0]
[1721343928479,6.3773,160.27,160.15,9.26963654]
[1721343928480,15.0,160.21,160.16,15.0]
[1721343928674,15.0,160.21,160.17,45.0]
[1721343928978,15.0,160.22,160.18,1.24838523]
[1721343932079,15.0,160.22,160.17,60.0]
[1721343933263,15.0,160.22,160.16,15.0]
[1721343934174,15.0,160.22,160.17,1.24844192]
[1721343934380,15.0,160.22,160.18,1.24844061]
[1721343935495,15.0,160.24,160.19,15.0]
[1721343935795,6.3773,160.27,160.2,1.24828841]
[1721343935954,6.3773,160.27,160.21,16.24823669]
[1721343936159,6.3773,160.27,160.22,16.24808373]
[1721343936160,21.3773,160.27,160.22,16.24808373]
[1721343937272,31.5604,160.28,160.23,16.24797978]
[1721343937471,31.5604,160.28,160.24,1.24797983]
[1721343938595,31.5604,160.28,160.23,15.0]
[1721343938768,12.7975,160.31,160.24,16.2479807]
[1721343938962,15.0,160.3,160.25,15.0]
[1721343939279,15.0,160.29,160.24,16.2479807]
[1721343939486,15.0,160.29,160.25,1.24790288]
[1721343939983,15.0,160.28,160.25,1.24790288]
[1721343940565,15.0,160.28,160.24,1.2479031]
[1721343941167,15.0,160.28,160.23,15.0]
[1721343941677,15.0,160.28,160.24,1.2479215]
[1721343942297,15.0,160.29,160.24,16.2479215]
[1721343942471,15.0,160.29,160.25,1.24790397]
[1721343945095,15.0,160.28,160.25,1.24790397]
[1721343945301,15.0,160.28,160.24,1.24790617]
[1721343946286,15.0,160.29,160.24,1.24790617]
[1721343946969,15.0,160.29,160.24,16.24790617]
[1721343947173,15.0,160.29,160.25,1.24790657]
[1721343949389,15.0,160.3,160.25,16.24790657]
[1721343949571,15.0,160.3,160.25,15.0]
[1721343950198,15.1572,160.32,160.26,15.0]
[1721343950377,15.0,160.31,160.27,1.24777148]
[1721343950577,30.1572,160.32,160.27,16.24777148]
[1721343950782,15.1572,160.32,160.28,16.24767153]
[1721343951191,15.1572,160.32,160.28,15.0]
[1721343951597,15.0,160.33,160.28,15.0]
[1721343951781,21.2367,160.34,160.29,15.0]
[1721343952803,15.0,160.32,160.27,15.0]
[1721343954200,12.8618,160.35,160.28,15.0]
[1721343954383,15.0,160.33,160.28,16.24765098]
[1721343954584,15.0,160.33,160.29,1.24756302]
[1721343955201,15.0,160.33,160.3,1.24760731]
[1721343955796,15.0,160.33,160.29,1.24752978]
[1721343956401,15.0,160.33,160.28,15.0]
[1721343957905,12.8619,160.35,160.29,16.24755171]
[1721343958097,15.0,160.34,160.29,16.24755171]
[1721343958303,21.6255,160.35,160.3,1.24745098]
[1721343958691,22.899,160.37,160.3,16.24745098]
[1721343958898,15.0,160.36,160.31,16.24743346]
[1721343959208,16.6632,160.37,160.33,15.0]
[1721343959708,6.2137,160.39,160.34,15.0]
[1721343959910,21.2137,160.39,160.34,15.0]
[1721343960211,27.4485,160.39,160.34,15.0]
[1721343960385,27.4485,160.39,160.33,15.0]
[1721343960894,15.0,160.4,160.35,15.0]
[1721343961083,15.0,160.39,160.34,15.0]
[1721343961287,31.4315836,160.41,160.36,15.0]
[1721343961715,16.4315836,160.41,160.37,15.0]
[1721343962015,31.4315836,160.41,160.36,15.0]
[1721343962216,15.0,160.4,160.3,0.30553179]
[1721343962389,15.0,160.4,160.35,15.0]
[1721343963211,0.8142836,160.41,160.36,15.0]
[1721343963396,0.8142836,160.41,160.38,15.0]
[1721343963899,0.8142836,160.41,160.39,15.0]
[1721343964091,0.8142836,160.41,160.38,15.0]
[1721343965915,0.8142836,160.41,160.4,15.0]
[1721343966911,0.8142836,160.41,160.39,15.0]
[1721343968329,0.8142836,160.41,160.38,15.0]
[1721343968514,0.8142836,160.41,160.33,11.1674]
[1721343968695,0.8142836,160.41,160.37,15.0]
[1721343969808,0.8142836,160.41,160.38,15.0]
[1721343970612,0.8142836,160.41,160.39,16.24689897]
[1721343970822,0.8142836,160.41,160.39,15.0]
[1721343971209,0.8142836,160.41,160.4,15.0]
[1721343971516,30.5522,160.45,160.4,15.0]
[1721343971736,0.4783247,160.41,160.4,15.0]
[1721343972911,0.4783247,160.41,160.39,15.0]
[1721343974013,0.4783247,160.41,160.37,1.24677324]
[1721343974214,0.4783247,160.41,160.38,15.0]
[1721343974418,0.4783247,160.41,160.39,1.24677453]
[1721343974621,0.4783247,160.41,160.36,15.0]
[1721343974622,15.4783247,160.41,160.36,15.0]
[1721343974924,0.4783247,160.41,160.37,15.0]
[1721343975711,0.4783247,160.41,160.39,15.0]
[1721343976122,0.4783247,160.41,160.4,16.24676364]
[1721343976321,0.4783247,160.41,160.4,15.0]
[1721343978932,0.4783247,160.41,160.4,60.0]
[1721343979113,0.4783247,160.41,160.4,15.0]
[1721343979723,0.4783247,160.41,160.39,15.0]
[1721343979925,0.4783247,160.41,160.34,0.30553179]
[1721343980133,0.4783247,160.41,160.37,15.0]
[1721343983124,0.4783247,160.41,160.36,15.0]
[1721343983427,0.4783247,160.41,160.37,45.0]
[1721343983848,15.4783247,160.41,160.36,15.0]
[1721343984247,15.4783247,160.41,160.37,1.24696761]
[1721343984551,0.4783247,160.41,160.38,15.0]
[1721343985862,0.4783247,160.41,160.39,45.0]
[1721343986027,0.4783247,160.41,160.39,60.0]
[1721343986426,0.4783247,160.41,160.39,15.0]
[1721343987848,0.4783247,160.41,160.4,60.0]
[1721343997552,0.4783247,160.41,160.4,15.0]
[1721344000062,0.4783247,160.41,160.4,60.0]
[1721344001861,0.4783247,160.41,160.34,9.52661809]
[1721344002038,0.4783247,160.41,160.35,45.0]
[1721344002243,0.4783247,160.41,160.38,15.0]
[1721344003145,0.4783247,160.41,160.34,45.30553179]
[1721344003343,0.4783247,160.41,160.38,15.0]
[1721344003762,15.0881,160.39,160.34,9.22698658]
[1721344003971,15.0881,160.39,160.35,15.0]
[1721344004267,15.0881,160.39,160.36,16.24705269]
[1721344004472,15.0881,160.39,160.37,16.24697134]
[1721344004969,15.0881,160.39,160.37,15.0]
[1721344005343,15.0881,160.39,160.34,9.22698658]
[1721344005544,30.0881,160.39,160.33,9.22698658]
[1721344005739,15.0881,160.39,160.35,15.0]
[1721344006761,15.0,160.38,160.33,9.23482465]
[1721344006963,15.0,160.37,160.32,24.23482465]
[1721344007162,15.0,160.38,160.33,15.0]
[1721344008757,15.0,160.36,160.32,9.23482465]
[1721344008966,15.0,160.35,160.3,9.23482465]
[1721344009273,15.0,160.35,160.3,15.0]
[1721344010354,15.0,160.34,160.29,24.23482465]
[1721344010961,37.4086,160.33,160.29,9.23482465]
[1721344011162,37.4086,160.33,160.28,24.23482465]
[1721344011775,15.0,160.32,160.28,9.23482465]
[1721344012161,22.4086,160.33,160.28,1.24766675]
[1721344012162,37.4086,160.33,160.28,1.24766675]
[1721344013772,15.0,160.32,160.28,1.24766675]
[1721344014079,15.0,160.32,160.27,1.24763456]
[1721344014261,15.0,160.32,160.26,24.25830487]
[1721344014463,15.0,160.31,160.27,1.24765792]
[1721344015272,15.0,160.31,160.26,24.25900914]
[1721344015985,15.0,160.31,160.27,1.24767792]
[1721344016462,15.0,160.3,160.27,1.24767792]
[1721344016660,15.0,160.31,160.27,1.24767792]
[1721344017467,22.4086,160.33,160.28,15.0]
[1721344017657,15.4783247,160.35,160.3,15.0]
[1721344017868,15.4783247,160.35,160.31,16.24737056]
[1721344018071,15.4783247,160.35,160.32,1.24733693]
[1721344018976,0.4783247,160.35,160.32,1.24733693]
[1721344019192,0.4783247,160.35,160.33,1.24733257]
[1721344019562,0.4783247,160.35,160.31,15.0]
[1721344019885,15.4783247,160.35,160.32,1.24736348]
[1721344020187,0.4783247,160.35,160.33,1.24730874]
[1721344021279,0.4783247,160.35,160.32,1.2472948]
[1721344021464,0.4783247,160.35,160.32,1.24729577]
[1721344021664,0.4783247,160.35,160.31,45.0]
[1721344021866,15.4783247,160.35,160.3,15.0]
[1721344022066,15.4783247,160.35,160.31,1.24738355]
[1721344022285,0.4783247,160.35,160.34,15.0]
[1721344022581,0.4783247,160.35,160.34,45.0]
[1721344022886,0.4783247,160.35,160.31,60.0]
[1721344023682,0.4783247,160.35,160.31,45.0]
[1721344023984,15.0,160.33,160.28,15.0]
[1721344024786,15.0,160.33,160.29,1.24744583]
[1721344024964,15.0,160.33,160.28,15.0]
[1721344025164,23.1595247,160.35,160.29,16.24744566]
[1721344025165,15.0,160.34,160.29,16.24744566]
[1721344025475,15.0,160.34,160.3,46.24743187]
[1721344026061,15.0,160.34,160.3,45.0]
[1721344026368,15.0,160.33,160.29,45.0]
[1721344027363,15.0,160.31,160.26,9.26965782]
[1721344027562,15.0,160.31,160.26,15.0]
[1721344028083,15.0,160.32,160.27,16.24759374]
[1721344028396,15.0,160.32,160.25,0.30553179]
[1721344028397,15.0,160.31,160.26,15.0]
[1721344028885,15.0,160.31,160.27,46.24759465]
[1721344029086,15.0,160.31,160.27,45.0]
[1721344030290,15.0,160.3,160.27,45.0]
[1721344030579,15.0,160.3,160.26,45.0]
[1721344032366,15.0,160.27,160.22,24.27806271]
[1721344032570,15.0,160.27,160.22,15.0]
[1721344032889,15.0,160.27,160.21,15.0]
[1721344033877,15.0,160.26,160.22,45.0]
[1721344034083,15.0,160.23,160.18,9.27806271]
[1721344034274,15.0,160.23,160.18,24.27806271]
[1721344034470,15.0,160.23,160.18,15.0]
[1721344035196,15.0,160.23,160.19,1.24819163]
[1721344035384,15.0,160.22,160.17,15.0]
[1721344035973,15.0,160.22,160.18,1.24832897]